bitfinex-derivatives/quotes_ETHF0:USTF0_20250701
["timestamp","ask_amount","ask_price","bid_price","bid_amount"]
[1751368658666,0.81629,2449.6,2449.5,95.94826]
[1751368659067,0.81629,2449.6,2449.5,71.14026]
[1751368659364,0.81629,2449.6,2449.5,95.94826]
[1751368659970,0.6996,2449.7,2449.6,0.81625]
[1751368659971,1.51584,2449.7,2449.6,0.81625]
[1751368660170,2.44679907,2449.7,2449.6,0.81625]
[1751368660370,1.51584,2449.7,2449.6,0.81625]
[1751368660871,0.81631,2449.6,2449.5,58.794]
[1751368661066,3.15152615,2449.6,2449.5,95.134]
[1751368661265,4.57132615,2449.6,2449.5,95.134]
[1751368661468,10.50183019,2449.6,2449.5,58.794]
[1751368661764,8.16661404,2449.6,2449.5,95.136]
[1751368661960,48.96661404,2449.6,2449.5,95.136]
[1751368662172,48.96661404,2449.6,2449.5,58.794]
[1751368662473,49.67841404,2449.6,2449.5,95.138]
[1751368662770,49.67841404,2449.6,2449.5,95.95429]
[1751368663571,0.81634,2449.5,2449.4,0.8163]
[1751368663764,2.17814,2449.5,2449.4,37.1613]
[1751368664373,43.90821238,2449.5,2449.4,37.1613]
[1751368664570,46.24342853,2449.5,2449.4,0.8163]
[1751368664774,46.24342853,2449.5,2449.4,37.1573]
[1751368665069,0.81635,2449.4,2449.3,0.81634]
[1751368665268,4.08163853,2449.4,2449.3,37.15834]
[1751368665477,10.44340853,2449.4,2449.3,36.342]
[1751368665772,0.81642,2449.2,2449.1,0.81639]
[1751368665966,0.81642,2449.2,2449.1,12.35239]
[1751368666171,43.95163615,2449.2,2449.1,12.35339]
[1751368666479,0.40455254,2450.1,2449.1,36.346]
[1751368666778,0.7043,2449.9,2449.8,0.81619]
[1751368666970,1.63414352,2449.9,2449.8,37.20819]
[1751368667476,42.43414352,2449.9,2449.8,37.20819]
[1751368668473,43.25029352,2449.9,2449.8,37.20819]
[1751368668881,43.25031352,2449.9,2449.8,36.387]
[1751368669373,43.25031352,2449.9,2449.8,37.20319]
[1751368669574,43.25031352,2449.9,2449.8,36.387]
[1751368671377,43.25031352,2449.9,2449.8,37.20319]
[1751368671874,43.25031352,2449.9,2449.8,36.387]
[1751368674575,0.81625,2449.6,2449.5,0.81626]
[1751368674881,0.81625,2449.6,2449.5,37.21526]
[1751368674882,1.74609352,2449.6,2449.5,37.21526]
[1751368675480,1.74609352,2449.6,2449.5,36.399]
[1751368675881,0.81635,2449.4,2449.3,0.81631]
[1751368676080,1.74619352,2449.4,2449.3,37.21531]
[1751368676280,1.74619352,2449.4,2449.3,37.21331]
[1751368676475,1.74619352,2449.4,2449.3,0.81631]
[1751368676681,1.74619352,2449.4,2449.3,37.21231]
[1751368676980,1.74619352,2449.4,2449.3,12.35335]
[1751368677180,1.74619352,2449.4,2449.3,37.21135]
[1751368677873,1.74619352,2449.4,2449.3,11.537]
[1751368678078,1.74619352,2449.4,2449.3,36.397]
[1751368678583,1.74619352,2449.4,2449.3,37.21335]
[1751368680484,1.74619352,2449.4,2449.3,36.397]
[1751368681477,1.74619352,2449.4,2449.3,11.537]
[1751368681678,0.81642,2449.1,2449.0,60.28842]
[1751368681980,1.74626352,2449.1,2449.0,37.89045]
[1751368682385,1.74626352,2449.1,2449.0,39.27285]
[1751368682883,1.74626352,2449.1,2449.0,2.87185]
[1751368683083,1.74626352,2449.1,2449.0,39.27585]
[1751368687484,0.81652,2448.8,2448.7,0.244586]
[1751368687686,0.81651,2448.9,2448.8,0.8165]
[1751368687893,1.74423446,2448.9,2448.8,0.6963]
[1751368688192,1.74423446,2448.9,2448.8,2.82342]
[1751368688491,0.92772446,2448.9,2448.8,2.82342]
[1751368688689,1.74421446,2448.9,2448.8,39.23242]
[1751368688993,1.74421446,2448.9,2448.8,38.4159]
[1751368689292,1.74421446,2448.9,2448.8,13.5579]
[1751368689584,1.74421446,2448.9,2448.8,2.0069]
[1751368689889,1.74421446,2448.9,2448.8,38.4119]
[1751368690090,1.74421446,2448.9,2448.8,39.22842]
[1751368690590,1.74421446,2448.9,2448.8,38.4119]
[1751368690893,1.74421446,2448.9,2448.8,39.22842]
[1751368691588,0.92772446,2448.9,2448.8,0.81652]
[1751368691786,0.92772446,2448.9,2448.8,27.07552]
[1751368692290,1.74421446,2448.9,2448.8,27.07552]
[1751368692491,0.92772446,2448.9,2448.8,27.07552]
[1751368692687,0.92772446,2448.9,2448.8,29.41073615]
[1751368692886,0.92772446,2448.9,2448.8,30.12313615]
[1751368693282,1.74421446,2448.9,2448.8,29.30661615]
[1751368693485,1.74421446,2448.9,2448.8,26.9714]
[1751368694289,1.74421446,2448.9,2448.8,1.405]
[1751368694490,1.74421446,2448.9,2448.8,37.912]
[1751368694691,1.74421446,2448.9,2448.8,38.72852]
[1751368694692,0.92772446,2448.9,2448.8,38.72852]
[1751368697095,1.74421446,2448.9,2448.8,37.912]
[1751368697296,1.74421446,2448.9,2448.8,37.909]
[1751368698294,1.74421446,2448.9,2448.8,38.72552]
[1751368698496,1.74421446,2448.9,2448.8,37.909]
[1751368698695,1.74421446,2448.9,2448.8,38.72552]
[1751368698898,0.92772446,2448.9,2448.8,38.72552]
[1751368699096,0.92772446,2448.9,2448.8,41.06073615]
[1751368699295,0.92772446,2448.9,2448.8,46.06073615]
[1751368699500,0.92772446,2448.9,2448.8,41.06073615]
[1751368701301,0.81643,2449.1,2448.8,41.06073615]
[1751368701496,1.74425944,2449.0,2448.9,2.79179]
[1751368701700,0.92780944,2449.0,2448.9,5.12700615]
[1751368702603,0.81631,2449.5,2449.4,0.81631]
[1751368702797,0.81631,2449.5,2449.4,37.31331]
[1751368702997,1.7443602,2449.5,2449.4,37.31331]
[1751368703204,1.7443602,2449.5,2449.4,37.8142]
[1751368703904,1.7443602,2449.5,2449.4,38.63052]
[1751368704905,1.7443602,2449.5,2449.4,37.8142]
[1751368705903,0.9280502,2449.5,2449.4,38.63052]
[1751368706104,0.9280502,2449.5,2449.4,39.29982]
[1751368708706,0.9280502,2449.5,2449.4,41.63503615]
[1751368709509,0.81624,2449.7,2449.6,0.81625]
[1751368709702,1.74373661,2449.7,2449.6,25.75425]
[1751368710007,0.92749661,2449.7,2449.6,25.75425]
[1751368710212,1.74371661,2449.7,2449.6,27.17225]
[1751368712909,0.92749661,2449.7,2449.6,27.17225]
[1751368713308,1.74371661,2449.7,2449.6,27.17225]
[1751368713709,1.74371661,2449.7,2449.6,38.73825]
[1751368713910,0.92749661,2449.7,2449.6,38.73825]
[1751368714107,0.92749661,2449.7,2449.6,41.07346615]
[1751368714713,0.7122,2450.1,2450.0,0.81612]
[1751368715013,0.92632169,2450.1,2450.0,27.25321615]
[1751368715207,0.92632169,2450.1,2450.0,28.06933615]
[1751368715407,0.81604,2450.3,2450.2,0.81605]
[1751368715609,1.74183808,2450.3,2450.2,96.13905]
[1751368717419,0.92579808,2450.3,2450.2,96.13905]
[1751368717916,1.74181808,2450.3,2450.2,96.13905]
[1751368719616,1.74181808,2450.3,2450.2,95.323]
[1751368720117,1.74181808,2450.3,2450.2,58.806]
[1751368720418,0.81602,2450.3,2450.2,95.3]
[1751368720615,0.81602,2450.3,2450.2,95.299]
[1751368721516,0.81602,2450.3,2450.2,96.11505]
[1751368721717,0.81602,2450.3,2450.2,95.299]
[1751368722315,0.81602,2450.3,2450.2,95.312]
[1751368723422,0.81602,2450.3,2450.2,58.806]
[1751368723619,1.73931334,2450.3,2450.2,95.312]
[1751368724116,1.73931334,2450.3,2450.2,58.806]
[1751368724323,3.18471334,2450.3,2450.2,95.309]
[1751368725016,3.18471334,2450.3,2450.2,95.312]
[1751368728717,1.73931334,2450.3,2450.2,95.312]
[1751368729616,1.73931334,2450.3,2450.2,71.20305]
[1751368729821,1.73931334,2450.3,2450.2,96.11405]
[1751368731922,1.73931334,2450.3,2450.2,95.298]
[1751368732324,1.73931334,2450.3,2450.2,96.11405]
[1751368733122,1.73931334,2450.3,2450.2,95.298]
[1751368733425,1.73931334,2450.3,2450.2,96.11405]
[1751368734727,1.73931334,2450.3,2450.2,95.298]
[1751368735231,2.03964,2450.8,2450.2,98.44926615]
[1751368735526,0.81594,2450.6,2450.4,0.81598]
[1751368735725,0.81594,2450.6,2450.5,24.943]
[1751368736027,0.92993232,2450.6,2450.5,25.75895]
[1751368736422,1.74585232,2450.6,2450.5,25.75895]
[1751368741927,1.74585232,2450.6,2450.5,0.81595]
[1751368742230,1.74585232,2450.6,2450.5,37.31695]
[1751368742433,0.81592,2450.6,2450.5,37.31695]
[1751368743136,0.6829,2450.7,2450.6,0.81592]
[1751368743330,0.81588,2450.8,2450.7,0.81586]
[1751368743634,0.81588,2450.8,2450.7,25.73486]
[1751368744828,0.6755,2450.9,2450.7,24.919]
[1751368745034,1.49134,2450.9,2450.8,0.81585]
[1751368746334,0.81585,2450.8,2450.7,25.73487]
[1751368748135,0.81594,2450.7,2450.6,0.8159]
[1751368748335,0.81594,2450.7,2450.6,37.3069]
[1751368748536,0.81588,2450.8,2450.7,0.81585]
[1751368749336,1.49136,2450.9,2450.8,0.81585]
[1751368749532,1.49136,2450.9,2450.8,25.72085]
[1751368750334,0.6755,2450.9,2450.8,25.72085]
[1751368750535,1.47412,2451.0,2450.9,0.81582]
[1751368750536,0.81582,2451.0,2450.9,0.81582]
[1751368753334,1.53758,2451.1,2451.0,0.81579]
[1751368755036,0.81579,2451.0,2450.9,1.3813]
[1751368755240,0.81579,2451.0,2450.9,2.1971]
[1751368755443,1.53758,2451.1,2451.0,0.81579]
[1751368755838,0.81579,2451.0,2450.9,1.3813]
[1751368756039,0.81582,2450.9,2450.8,25.72084]
[1751368756439,2.03957,2450.9,2450.5,1.3886]
[1751368756641,0.81594,2450.6,2450.5,0.81591]
[1751368756840,0.81594,2450.6,2450.5,37.27691]
[1751368759744,0.81594,2450.6,2450.5,0.81591]
[1751368759946,0.81594,2450.6,2450.5,37.28691]
[1751368761045,0.81591,2450.7,2450.6,0.81592]
[1751368761447,0.81592,2450.6,2450.5,37.28694]
[1751368762745,0.81592,2450.6,2450.5,38.68454]
[1751368763347,0.81591,2450.7,2450.6,0.81589]
[1751368765849,0.81592,2450.6,2450.5,13.79352]
[1751368766042,0.81592,2450.6,2450.5,38.67052]
[1751368769255,0.81592,2450.6,2450.5,2.21352]
[1751368769447,0.81592,2450.6,2450.5,38.65752]
[1751368769658,0.81591,2450.7,2450.6,0.81589]
[1751368773851,0.81591,2450.7,2450.6,37.21689]
[1751368775061,0.81584,2451.0,2450.9,0.81579]
[1751368775260,1.49934,2451.0,2450.9,25.65879]
[1751368777159,1.49934,2451.0,2450.9,24.843]
[1751368777660,0.81589,2450.8,2450.6,1.3321]
[1751368777862,0.81589,2450.8,2450.7,37.21489]
[1751368778460,0.81589,2450.8,2450.7,0.81589]
[1751368778760,0.81589,2450.8,2450.7,37.22289]
[1751368783962,0.81589,2450.8,2449.1,40.82085]
[1751368783963,3.15110615,2450.8,2449.1,41.55421768]
[1751368784160,0.81597,2450.5,2450.4,0.81595]
[1751368784360,0.81597,2450.5,2450.4,37.21195]
[1751368785561,0.81594,2450.6,2450.5,0.81591]
[1751368785761,0.81594,2450.6,2450.5,2.79591]
[1751368788362,0.81594,2450.6,2450.5,1.98]
[1751368789363,0.81594,2450.6,2450.5,2.79595]
[1751368789661,0.81591,2450.7,2450.6,0.81589]
[1751368789854,0.81591,2450.7,2450.6,24.846]
[1751368790058,0.81592,2450.6,2450.5,0.81594]
[1751368790256,0.81592,2450.6,2450.5,36.396]
[1751368790459,0.81599,2450.5,2450.3,0.7002]
[1751368790669,0.81599,2450.5,2450.4,37.20998]
[1751368791063,0.81599,2450.5,2450.4,36.394]
[1751368791660,0.81599,2450.4,2450.3,0.81601]
[1751368791863,0.81599,2450.4,2450.3,36.392]
[1751368792164,0.81599,2450.4,2450.3,37.20802]
[1751368793770,0.81599,2450.4,2450.3,0.81602]
[1751368793971,0.81602,2450.3,2450.2,59.59103]
[1751368794272,0.81602,2450.3,2450.2,95.98003]
[1751368794465,0.81602,2450.3,2450.2,71.14203]
[1751368794666,0.81602,2450.3,2450.2,95.97903]
[1751368795273,0.81602,2450.3,2450.2,71.14203]
[1751368795471,0.81602,2450.3,2450.2,59.59103]
[1751368795671,0.81602,2450.3,2450.2,95.98203]
[1751368797672,0.81602,2450.3,2450.2,70.326]
[1751368797874,0.81602,2450.3,2450.2,95.166]
[1751368798674,0.81602,2450.3,2450.2,95.16]
[1751368799379,0.81602,2450.3,2450.2,95.97605]
[1751368799876,0.81602,2450.3,2450.2,59.59105]
[1751368800079,0.81602,2450.3,2450.2,95.97105]
[1751368800376,0.81602,2450.3,2450.2,95.155]
[1751368800880,0.81602,2450.3,2450.2,95.97105]
[1751368801278,0.81602,2450.3,2450.2,59.59105]
[1751368801480,0.81602,2450.3,2450.2,95.97205]
[1751368801978,0.81602,2450.3,2450.2,59.59105]
[1751368802179,0.81602,2450.3,2450.2,95.96605]
[1751368802482,0.81602,2450.3,2450.2,95.15]
[1751368802873,2.33521615,2450.4,2450.1,0.81606]
[1751368802874,0.81605,2450.2,2450.1,0.81606]
[1751368803075,1.50275,2450.2,2450.1,0.81606]
[1751368805484,2.43329859,2450.2,2450.1,37.16806]
[1751368805778,2.43329859,2450.2,2450.1,39.22706]
[1751368805779,1.61724859,2450.2,2450.1,39.22706]
[1751368805982,0.93054859,2450.2,2450.1,39.22706]
[1751368808085,0.93054859,2450.2,2450.1,0.81606]
[1751368808284,0.93054859,2450.2,2450.0,58.785]
[1751368808583,2.43753859,2450.1,2450.0,58.785]
[1751368808984,3.09753859,2450.1,2450.0,95.147]
[1751368809379,3.09753859,2450.1,2450.0,58.785]
[1751368809580,2.04038,2450.0,2449.6,60.1242]
[1751368809786,0.81622,2449.7,2449.6,60.94045]
[1751368809985,0.81622,2449.7,2449.6,97.30145]
[1751368810786,1.5156,2449.8,2449.7,0.81622]
[1751368810985,1.5156,2449.8,2449.7,2.15542]
[1751368811787,0.66,2450.1,2449.7,1.3392]
[1751368811992,0.81608,2450.2,2450.1,0.81607]
[1751368812191,0.81608,2450.2,2450.1,37.17307]
[1751368812391,1.74559998,2450.2,2450.1,36.357]
[1751368812789,1.74559998,2450.2,2450.1,37.7498]
[1751368814190,3.26473613,2450.2,2449.6,60.82562]
[1751368814389,0.81619,2449.9,2449.8,0.81618]
[1751368814688,1.74570998,2449.9,2449.8,2.20898]
[1751368815594,1.74570998,2449.9,2449.8,1.3928]
[1751368815793,0.92951998,2449.9,2449.8,36.369]
[1751368815989,1.74566998,2449.9,2449.8,36.369]
[1751368816190,2.45066998,2449.9,2449.8,36.369]
[1751368818397,2.45066998,2449.9,2449.8,37.18519]
[1751368818588,2.45066998,2449.9,2449.8,36.369]
[1751368819684,2.45066998,2449.9,2449.8,37.18519]
[1751368821594,1.74566998,2449.9,2449.8,37.18519]
[1751368822299,1.74566998,2449.9,2449.8,38.57519]
[1751368823494,0.92951998,2449.9,2449.8,38.57519]
[1751368823696,1.74566998,2449.9,2449.8,38.57519]
[1751368826902,0.92951998,2449.9,2449.8,38.57519]
[1751368827203,0.92982175,2449.9,2449.8,37.759]
[1751368827400,0.81613,2450.0,2449.9,0.81615]
[1751368827704,1.746002,2450.0,2449.9,2.17225]
[1751368827890,0.929872,2450.0,2449.9,2.82585]
[1751368828094,1.745992,2450.0,2449.9,2.82585]
[1751368828502,0.929872,2450.0,2449.9,2.82585]
[1751368828703,1.745992,2450.0,2449.9,2.82585]
[1751368829802,1.745992,2450.0,2449.6,60.82562]
[1751368829803,0.81619,2449.9,2449.6,58.785]
[1751368830103,1.746092,2449.8,2449.7,37.1672]
[1751368834307,3.26508815,2449.8,2449.4,0.8163]
[1751368834604,0.81628,2449.6,2449.5,24.816]
[1751368834804,1.746152,2449.6,2449.5,24.816]
[1751368835004,2.461452,2449.6,2449.5,24.816]
[1751368835705,2.461452,2449.6,2449.5,25.63229]
[1751368836303,2.461452,2449.6,2449.5,26.99869]
[1751368836503,2.461452,2449.6,2449.5,27.68269]
[1751368836810,0.929872,2449.6,2449.5,27.68269]
[1751368837003,0.929872,2449.6,2449.5,30.01790615]
[1751368837308,0.929872,2449.6,2449.5,30.69340615]
[1751368839111,0.92923649,2449.6,2449.5,30.69340615]
[1751368840107,0.92923649,2449.6,2449.5,35.69340615]
[1751368840507,0.92923649,2449.6,2449.5,30.69340615]
[1751368841013,0.81614,2450.0,2449.9,0.81615]
[1751368841014,0.81613,2450.0,2449.9,0.81615]
[1751368841312,1.74557156,2450.0,2449.9,37.16915]
[1751368842312,1.74557156,2450.0,2449.9,38.51435]
[1751368844712,0.92944156,2450.0,2449.9,38.51435]
[1751368845621,0.92944156,2450.0,2449.9,37.15615]
[1751368846420,1.74556156,2450.0,2449.9,38.49135]
[1751368848820,1.74556156,2450.0,2449.9,37.6752]
[1751368849011,1.74556156,2450.0,2449.9,38.49135]
[1751368849720,1.74556156,2450.0,2449.9,37.15615]
[1751368850312,0.92944156,2450.0,2449.9,37.15615]
[1751368850517,3.26465771,2450.0,2449.8,11.53]
[1751368850712,1.74559156,2449.9,2449.8,11.53]
[1751368850911,1.74559156,2449.9,2449.8,36.416]
[1751368851418,1.74559156,2449.9,2449.8,36.417]
[1751368852222,0.92944156,2449.9,2449.8,38.53869]
[1751368854521,0.92944156,2449.9,2449.8,40.87390615]
[1751368854821,0.6941,2450.1,2449.9,0.81615]
[1751368854822,0.92959237,2450.0,2449.9,0.81615]
[1751368855021,0.92959237,2450.0,2449.9,2.18355]
[1751368858527,1.48061,2450.7,2450.6,0.81592]
[1751368858827,2.41011346,2450.7,2450.6,36.83092176]
[1751368859725,1.59420346,2450.7,2450.6,36.83092176]
[1751368860729,2.41009346,2450.7,2450.6,36.83092176]
[1751368860929,1.59420346,2450.7,2450.6,36.83092176]
[1751368865823,0.92950346,2450.7,2450.6,36.83092176]
[1751368866224,0.92950346,2450.7,2450.6,38.18202176]
[1751368866426,0.92950346,2450.7,2450.6,40.51723791]
[1751368868230,0.7084,2450.9,2450.8,0.81585]
[1751368868427,0.7084,2450.9,2450.8,25.67785]
[1751368868629,1.63629634,2450.9,2450.8,25.67785]
[1751368869927,0.92789634,2450.9,2450.8,29.45816615]
[1751368870133,0.92789634,2450.9,2450.8,34.45816615]
[1751368870527,0.92789634,2450.9,2450.8,32.12295]
[1751368870728,0.92789634,2450.9,2450.8,34.45816615]
[1751368871029,1.47614,2451.5,2451.4,0.81565]
[1751368871237,2.40394658,2451.5,2451.4,37.22865]
[1751368871532,2.40394658,2451.5,2451.4,36.413]
[1751368871734,3.72434658,2451.5,2451.4,36.413]
[1751368873734,3.72434658,2451.5,2451.4,37.22865]
[1751368875542,3.72434658,2451.5,2451.4,36.413]
[1751368876442,0.81569,2451.3,2451.2,59.5967]
[1751368876744,0.81569,2451.3,2451.2,95.176]
[1751368877041,1.74349658,2451.3,2451.2,95.176]
[1751368879447,1.74349658,2451.3,2451.2,95.99172]
[1751368884050,0.92780658,2451.3,2451.2,95.99172]
[1751368884447,0.92780658,2451.3,2451.2,97.42932]
[1751368885840,1.74349658,2451.3,2451.2,97.42932]
[1751368886052,0.92780658,2451.3,2451.2,97.42932]
[1751368890654,0.7063,2451.7,2451.6,0.81559]
[1751368890850,3.02291615,2451.8,2451.7,0.81555]
[1751368891050,3.95121254,2451.8,2451.7,12.36455]
[1751368891353,4.76676254,2451.8,2451.7,12.36455]
[1751368892048,1.61599639,2451.8,2451.7,12.36455]
[1751368892651,1.61599639,2451.8,2451.7,13.72645]
[1751368893153,0.92829639,2451.8,2451.7,13.72645]
[1751368904166,0.81547,2452.0,2451.7,13.72645]
[1751368904366,0.81547,2452.0,2451.9,0.81549]
[1751368904567,0.92522768,2452.0,2451.9,0.81549]
[1751368905469,1.74067768,2452.0,2451.9,0.81549]
[1751368905667,0.92522768,2452.0,2451.9,0.81549]
[1751368906468,1.74067768,2452.0,2451.9,0.81549]
[1751368906670,0.92522768,2452.0,2451.9,0.81549]
[1751368907372,1.74067768,2452.0,2451.9,0.81549]
[1751368907669,0.92522768,2452.0,2451.9,0.81549]
[1751368907872,1.74067768,2452.0,2451.9,0.81549]
[1751368908873,0.92522768,2452.0,2451.9,0.81549]
[1751368909566,3.26044383,2452.0,2451.8,0.81549]
[1751368909770,0.92522768,2451.9,2451.8,0.81549]
[1751368909967,0.92522768,2451.9,2451.8,25.60549]
[1751368910165,1.74074768,2451.9,2451.8,25.60549]
[1751368912472,1.74074768,2451.9,2451.8,37.12949]
[1751368913167,1.74074768,2451.9,2451.8,36.313]
[1751368913371,3.11564768,2451.9,2451.8,36.313]
[1751368913975,0.81562,2451.6,2451.5,0.81557]
[1751368914162,3.15083615,2451.6,2451.5,37.12857]
[1751368914368,4.07606383,2451.6,2451.5,37.12857]
[1751368914563,6.11906383,2451.6,2451.5,0.81557]
[1751368914869,6.11906383,2451.6,2451.5,37.12857]
[1751368915068,6.11906383,2451.6,2451.5,0.81557]
[1751368915366,6.11906383,2451.6,2451.5,37.12857]
[1751368916475,6.11906383,2451.6,2451.5,11.524]
[1751368916676,6.11906383,2451.6,2451.5,36.314]
[1751368917276,0.81562,2451.5,2451.4,0.81564]
[1751368917575,0.81565,2451.4,2451.3,59.56667]
[1751368917775,1.74087768,2451.4,2451.3,37.13067]
[1751368918268,1.74087768,2451.4,2451.3,11.525]
[1751368918475,0.81569,2451.3,2451.2,59.5687]
[1751368918676,4.07613383,2451.3,2451.2,70.278]
[1751368918879,4.07613383,2451.3,2451.2,95.069]
[1751368921973,4.07613383,2451.3,2451.2,70.278]
[1751368922277,4.07613383,2451.3,2451.2,95.071]
[1751368923975,4.07613383,2451.3,2451.2,95.88672]
[1751368924179,1.74091768,2451.3,2451.2,95.88672]
[1751368924982,4.07613383,2451.3,2451.2,95.071]
[1751368925781,4.07613383,2451.3,2451.2,95.88672]
[1751368926280,4.07613383,2451.3,2451.2,95.071]
[1751368926584,4.07613383,2451.3,2451.2,95.88672]
[1751368927880,4.07613383,2451.3,2451.2,95.071]
[1751368928380,4.07613383,2451.3,2451.2,95.88672]
[1751368929880,0.92522768,2451.3,2451.2,95.88672]
[1751368930790,1.74091768,2451.3,2451.2,96.55792]
[1751368930986,0.92522768,2451.3,2451.2,96.55792]
[1751368933590,1.74091768,2451.3,2451.2,96.55792]
[1751368933886,0.92522768,2451.3,2451.2,96.55792]
[1751368936292,1.74091768,2451.3,2451.2,96.55792]
[1751368936585,0.92522768,2451.3,2451.2,96.55792]
[1751368939492,1.74091768,2451.3,2451.2,96.55792]
[1751368939692,0.92522768,2451.3,2451.2,96.55792]
[1751368942784,0.92586821,2451.4,2451.2,95.7422]
[1751368943088,0.92586821,2451.4,2451.3,2.14819]
[1751368943289,1.74151821,2451.4,2451.3,2.14819]
[1751368950889,0.92586821,2451.4,2451.3,2.14819]
[1751368951287,1.74151821,2451.4,2451.3,2.14819]
[1751368952393,0.92586821,2451.4,2451.3,2.14819]
[1751368953497,1.74151821,2451.4,2451.3,2.14819]
[1751368953996,0.92586821,2451.4,2451.3,2.14819]
[1751368959594,0.6922,2451.7,2451.6,0.81559]
[1751368959899,1.62080709,2451.7,2451.6,25.60459]
[1751368960197,2.43635709,2451.7,2451.6,25.60459]
[1751368960994,1.62080709,2451.7,2451.6,25.60459]
[1751368961600,2.43635709,2451.7,2451.6,25.60459]
[1751368964504,1.62080709,2451.7,2451.6,25.60459]
[1751368965204,2.43635709,2451.7,2451.6,25.60459]
[1751368967097,1.62080709,2451.7,2451.6,25.60459]
[1751368967297,0.92860709,2451.7,2451.6,25.60459]
[1751368968109,0.92860709,2451.7,2451.6,27.01089]
[1751368973917,0.92860709,2451.7,2451.6,28.65083868]
[1751368976413,1.74415709,2451.7,2451.6,27.01089]
[1751368976614,1.74415709,2451.7,2451.6,2.22189]
[1751368976826,0.81561,2451.6,2451.5,0.81559]
[1751368977016,2.45621709,2451.6,2451.5,37.11559]
[1751368977419,1.64060709,2451.6,2451.5,37.11559]
[1751368982023,0.92860709,2451.6,2451.5,37.11559]
[1751368982223,0.92860709,2451.6,2451.5,39.24369]
[1751368983627,0.6621,2452.2,2451.5,43.4281]
[1751368983828,1.4775,2452.2,2452.1,0.81542]
[1751368984024,2.40556671,2452.2,2452.1,37.11342]
[1751368984734,2.40556671,2452.2,2452.1,36.298]
[1751368985029,2.40556671,2452.2,2452.1,37.11342]
[1751368985225,2.40556671,2452.2,2452.1,36.298]
[1751368986734,2.40556671,2452.2,2452.1,37.11342]
[1751368992736,1.59016671,2452.2,2452.1,37.11342]
[1751368993835,2.40555671,2452.2,2452.1,37.11342]
[1751368998737,2.40555671,2452.2,2452.1,0.81542]
[1751368998933,2.40555671,2452.2,2452.1,37.10142]
[1751369000840,0.92806671,2452.2,2452.1,39.44464443]
[1751369001140,1.74345671,2452.2,2452.1,38.62922443]
[1751369001639,1.74345671,2452.2,2452.1,40.00812443]
[1751369002642,1.74345671,2452.2,2452.1,95.029]
[1751369005742,1.74345671,2452.2,2452.1,95.026]
[1751369008138,1.74345671,2452.2,2452.1,95.025]
[1751369008339,1.74345671,2452.2,2452.1,97.36822443]
[1751369008545,1.74345671,2452.2,2452.1,99.56724443]
[1751369008846,1.74345671,2452.2,2452.1,98.75182443]
[1751369010245,1.74345671,2452.2,2452.1,96.4086]
[1751369012241,1.74345671,2452.2,2452.1,97.22402]
[1751369012443,1.74345671,2452.2,2452.1,96.4086]
[1751369013739,1.74345671,2452.2,2452.1,96.4076]
[1751369014946,1.74345671,2452.2,2452.1,60.1286]
[1751369015147,1.74345671,2452.2,2452.1,96.4066]
[1751369015340,1.74345671,2452.2,2452.1,95.023]
[1751369015536,1.74345671,2452.2,2452.1,83.51]
[1751369015844,1.74345671,2452.2,2452.1,58.745]
[1751369016047,1.74345671,2452.2,2452.1,95.023]
[1751369016442,1.74345671,2452.2,2452.1,96.3257]
[1751369017950,1.74345671,2452.2,2452.1,60.0477]
[1751369018151,1.74345671,2452.2,2452.1,96.3247]
[1751369019152,1.74345671,2452.2,2452.1,97.14012]
[1751369020445,0.92806671,2452.2,2452.1,99.48334443]
[1751369020849,1.74345671,2452.2,2452.1,99.48334443]
[1751369022451,1.74345671,2452.2,2452.1,98.66792443]
[1751369022654,1.74345671,2452.2,2452.1,99.48334443]
[1751369031359,1.74345671,2452.2,2452.1,97.13012]
[1751369032361,0.92806671,2452.2,2452.1,97.13012]
[1751369032862,1.74345671,2452.2,2452.1,97.13012]
[1751369033664,0.92806671,2452.2,2452.1,97.13012]
[1751369035864,0.92806671,2452.2,2452.1,98.76915462]
[1751369037159,0.92806671,2452.2,2452.1,100.40818924]
[1751369039365,0.92806671,2452.2,2452.1,105.40818924]
[1751369039762,0.92806671,2452.2,2452.1,104.47093012]
[1751369040366,0.92806671,2452.2,2452.1,105.13683012]
[1751369041462,3.24308713,2453.0,2452.9,0.81515]
[1751369041667,3.90308713,2453.0,2452.9,39.41696012]
[1751369042166,0.66,2453.0,2452.9,39.41696012]
[1751369045464,2.34081012,2453.6,2453.3,0.81501]
[1751369045663,0.81499,2453.4,2453.3,0.81501]
[1751369045869,0.81499,2453.4,2453.3,37.07001]
[1751369046058,1.3774,2453.5,2453.3,37.07001]
[1751369046262,1.3774,2453.5,2453.4,0.81499]
[1751369047372,1.49636,2453.8,2453.7,0.81489]
[1751369047567,0.6815,2453.8,2453.7,25.56389]
[1751369047769,1.49636,2453.8,2453.7,25.56389]
[1751369048465,1.49636,2453.8,2453.7,24.749]
[1751369048670,1.49636,2453.8,2453.7,25.56389]
[1751369048875,2.84706,2453.8,2453.7,25.56389]
[1751369049068,2.84706,2453.8,2453.7,37.06789]
[1751369050062,2.84706,2453.8,2453.7,37.06689]
[1751369050968,2.84706,2453.8,2453.7,37.05889]
[1751369052575,2.84706,2453.8,2453.7,36.244]
[1751369052876,7.84706,2453.8,2453.7,36.244]
[1751369053273,0.81492,2453.6,2453.5,0.81493]
[1751369053574,0.81492,2453.6,2453.5,37.05793]
[1751369053775,1.73343008,2453.6,2453.5,37.05793]
[1751369058278,0.91851008,2453.6,2453.5,37.05793]
[1751369058482,0.91851008,2453.6,2453.5,38.44653]
[1751369059579,1.73343008,2453.6,2453.5,38.44653]
[1751369059973,0.91851008,2453.6,2453.5,38.44653]
[1751369061175,0.7189,2453.7,2453.5,38.44653]
[1751369061380,0.7189,2453.7,2453.6,0.81492]
[1751369061682,1.7330609,2453.7,2453.6,0.81492]